bitfinex-derivatives/quotes_ETHF0:USTF0_20260222
["timestamp","ask_amount","ask_price","bid_price","bid_amount"]
[1771763989726,0.0043776,1964.0,1963.3,2.63651448]
[1771763989922,2.59684811,1964.3,1963.3,2.63651448]
[1771763990228,0.0043776,1964.2,1963.3,2.63651448]
[1771763990524,0.00648877,1964.7,1963.3,2.63651448]
[1771763990525,2.59684811,1964.5,1963.3,2.63651448]
[1771763991026,0.0043776,1964.4,1963.3,2.63651448]
[1771763991223,2.59684811,1964.5,1963.3,2.63651448]
[1771763991428,2.59684811,1964.5,1963.4,2.63651448]
[1771763992035,2.60122571,1964.4,1963.4,2.63651448]
[1771763992232,0.00648877,1964.7,1963.4,2.63651448]
[1771763992233,0.0043776,1964.3,1963.4,2.63651448]
[1771763992530,2.60122571,1964.6,1963.4,2.63651448]
[1771763992731,2.59684811,1964.4,1963.4,2.63651448]
[1771763993228,0.0043776,1964.3,1963.4,2.63651448]
[1771763993625,2.59684811,1964.4,1963.4,2.63651448]
[1771763993824,0.0043776,1964.2,1963.4,2.63651448]
[1771763994026,2.60122571,1964.6,1963.4,2.63651448]
[1771763994228,2.60122571,1964.5,1963.4,2.63651448]
[1771763995432,2.59684811,1964.5,1963.4,2.63651448]
[1771763995630,2.60122571,1964.4,1963.4,2.63651448]
[1771763995831,2.59684811,1964.4,1963.4,2.63651448]
[1771763996432,3.39269519,1964.3,1963.4,2.63651448]
[1771763996636,2.60122571,1964.5,1963.4,2.63651448]
[1771763996834,0.79580795,1964.4,1963.4,2.63651448]
[1771763997035,2.60122571,1964.5,1963.4,2.63651448]
[1771763997230,0.79578987,1964.4,1963.4,2.63651448]
[1771763997435,0.79578792,1964.3,1963.4,2.63651448]
[1771763997635,0.79578792,1964.2,1963.4,2.63651448]
[1771763997835,0.0043776,1964.5,1963.4,2.63651448]
[1771763998031,0.79578789,1964.4,1963.4,2.63651448]
[1771763998237,0.79578789,1964.3,1963.4,2.63651448]
[1771763998436,0.79578789,1964.2,1963.4,2.63651448]
[1771763998638,2.60122571,1964.5,1963.4,2.63651448]
[1771763998639,0.79578789,1964.1,1963.4,2.63651448]
[1771763998839,0.79578789,1964.0,1963.4,2.63651448]
[1771763999038,2.60122571,1964.5,1963.4,2.63651448]
[1771763999341,0.79578195,1964.4,1963.4,2.63651448]
[1771763999539,0.79578195,1964.3,1963.4,2.63651448]
[1771763999738,0.79578195,1964.2,1963.4,2.63651448]
[1771763999942,0.79578195,1964.1,1963.4,2.63651448]
[1771764000137,0.79578195,1964.0,1963.4,2.63651448]
[1771764000338,0.79578195,1963.9,1963.4,2.63651448]
[1771764000535,2.59684811,1964.4,1963.4,2.63651448]
[1771764000738,2.60122571,1964.3,1963.4,2.63651448]
[1771764000933,2.59684811,1964.3,1963.3,6.646]
[1771764001140,2.59684811,1964.1,1962.8,2.63651448]
[1771764001437,2.59684811,1963.9,1962.8,2.63651448]
[1771764001742,4.15350063,1964.1,1962.8,2.63651448]
[1771764001743,2.59684811,1963.7,1962.8,2.63651448]
[1771764002043,2.59684811,1963.5,1962.7,0.00448298]
[1771764002233,2.59684811,1963.5,1962.7,2.64099746]
[1771764003038,2.59684811,1963.7,1962.7,2.64099746]
[1771764003244,2.59684811,1963.9,1962.9,2.63651448]
[1771764009042,2.58507923,1964.1,1962.9,2.63651448]
[1771764009543,2.58507923,1964.1,1963.1,2.74671773]
[1771764012552,2.58507923,1963.9,1963.1,2.74671773]
[1771764012845,3.22424084,1963.8,1963.1,2.74671773]
[1771764013046,0.63916161,1963.7,1963.1,2.74671773]
[1771764013248,0.63916161,1963.6,1963.1,2.74671773]
[1771764013548,2.58507923,1963.8,1963.1,2.74671773]
[1771764013742,3.22424839,1963.7,1963.1,2.74671773]
[1771764014047,40.8,1964.2,1963.1,2.74671773]
[1771764014048,3.22424839,1963.6,1963.1,2.73590217]
[1771764014250,0.63916916,1963.5,1963.1,2.73590217]
[1771764014550,3.09448249,1963.6,1963.1,2.73590217]
[1771764014749,0.63940137,1963.5,1963.1,2.73590217]
[1771764014948,2.58507923,1963.6,1963.1,2.73590217]
[1771764015148,0.63940121,1963.5,1963.1,2.73590217]
[1771764015348,2.58507923,1963.6,1963.1,2.73590217]
[1771764015548,0.6393856,1963.5,1963.1,2.73590217]
[1771764015847,2.58507923,1963.6,1963.1,2.73590217]
[1771764016043,0.63938572,1963.5,1963.1,2.73590217]
[1771764016244,2.66395437,1964.1,1963.1,2.73590217]
[1771764016548,2.66395437,1963.9,1963.1,2.73590217]
[1771764016748,0.63941703,1963.8,1963.1,2.73590217]
[1771764016944,0.63941703,1963.7,1963.1,2.73590217]
[1771764017248,0.63941703,1963.6,1963.1,2.73590217]
[1771764017445,0.63941703,1963.5,1963.1,2.73590217]
[1771764017645,2.66395437,1963.8,1963.1,2.73590217]
[1771764017846,0.63942403,1963.7,1963.1,2.73590217]
[1771764018144,0.63942403,1963.6,1963.1,2.73590217]
[1771764018344,0.63942403,1963.5,1963.1,2.73590217]
[1771764018547,2.66395437,1963.8,1963.1,2.73590217]
[1771764018740,0.63942225,1963.7,1963.1,2.73590217]
[1771764019045,2.66395437,1964.1,1963.1,2.73590217]
[1771764020347,43.46395437,1964.3,1963.3,2.57198801]
[1771764020547,2.66395437,1964.3,1963.3,2.57198801]
[1771764020944,2.66395437,1964.2,1963.3,2.57198801]
[1771764021144,2.66395437,1964.0,1963.3,2.57198801]
[1771764022149,2.66395437,1964.0,1962.8,2.57198801]
[1771764022654,2.66395437,1963.8,1962.8,2.57198801]
[1771764023650,2.66395437,1963.6,1962.8,2.57198801]
[1771764024161,5.096,1964.2,1962.8,2.57198801]
[1771764024162,2.66395437,1963.9,1962.8,2.57198801]
[1771764026054,2.66395437,1963.9,1963.0,2.57198801]
[1771764026249,2.66395437,1964.1,1963.2,2.57198801]
[1771764029263,2.66395437,1964.5,1963.2,2.57198801]
[1771764029466,2.66395437,1964.2,1963.4,2.57198801]
[1771764030068,2.66395437,1964.4,1963.4,2.57198801]
[1771764030866,3.24240569,1964.3,1963.4,2.57198801]
[1771764031068,2.66395437,1964.3,1963.4,2.57198801]
[1771764033272,2.66395437,1964.6,1963.4,2.57198801]
[1771764033472,3.24234556,1964.5,1963.4,2.57198801]
[1771764033672,2.66395437,1964.3,1963.4,2.57198801]
[1771764036474,2.66395437,1964.1,1963.2,2.57198801]
[1771764036672,47.32888525,1964.7,1963.2,2.57198801]
[1771764036673,2.66395437,1963.9,1963.2,2.57198801]
[1771764037475,2.66395437,1964.1,1963.2,2.57198801]
[1771764037674,2.66395437,1964.6,1963.2,2.57198801]
[1771764037977,2.66395437,1964.4,1963.2,2.57198801]
[1771764038277,2.54822402,1964.2,1963.2,2.57198801]
[1771764038576,3.126369,1964.1,1963.2,2.57198801]
[1771764038777,2.54822402,1964.1,1963.2,2.57198801]
[1771764039077,2.54822402,1964.3,1963.2,2.57198801]
[1771764039274,0.57529468,1964.2,1963.2,2.57198801]
[1771764039475,2.54822402,1964.3,1963.2,2.57198801]
[1771764039670,0.57529977,1964.2,1963.2,2.57198801]
[1771764039875,2.54822402,1964.3,1963.2,2.57198801]
[1771764040077,41.06105877,1964.7,1963.2,2.57198801]
[1771764040078,0.57529963,1964.2,1963.2,2.57198801]
[1771764040277,2.54822402,1964.4,1963.2,2.57198801]
[1771764040479,0.57528491,1964.3,1963.2,2.57198801]
[1771764040677,2.54822402,1964.4,1963.2,2.57198801]
[1771764040978,0.57528547,1964.3,1963.4,2.64965425]
[1771764041179,2.54822402,1964.6,1963.4,2.64965425]
[1771764041485,40.80648877,1964.7,1963.6,2.64965425]
[1771764041486,2.54822402,1964.4,1963.6,2.64965425]
[1771764042075,2.54822402,1964.6,1963.6,2.64965425]
[1771764042278,3.12338805,1964.5,1963.6,2.64965425]
[1771764042476,2.54822402,1964.5,1963.6,2.64965425]
[1771764042676,2.55471279,1964.7,1963.8,2.64965425]
[1771764042879,2.54822402,1964.6,1963.8,2.64965425]
[1771764044278,2.55471279,1964.7,1963.8,2.64965425]
[1771764044581,0.50940326,1964.3,1963.8,2.64965425]
[1771764045276,0.00648877,1964.7,1963.8,2.64965425]
[1771764045477,2.55471279,1964.7,1963.8,2.64965425]
[1771764045880,0.00648877,1964.7,1963.8,2.64965425]
[1771764046080,0.00648877,1964.7,1963.8,2.90432425]
[1771764046582,2.54822402,1965.1,1964.0,2.64965425]
[1771764046883,3.10593988,1965.0,1964.0,2.64965425]
[1771764047182,2.54822402,1965.2,1964.2,2.64965425]
[1771764047375,2.54822402,1965.0,1964.2,2.64965425]
[1771764047682,0.00439324,1965.0,1964.2,2.65359214]
[1771764047881,2.55261726,1965.0,1964.2,2.65359214]
[1771764048874,0.00439324,1965.0,1964.2,2.65359214]
[1771764049181,2.55261726,1965.0,1964.2,2.65359214]
[1771764051785,0.00439324,1965.0,1964.2,2.65359214]
[1771764053288,2.55261726,1965.0,1964.2,2.65359214]
[1771764059500,2.55261726,1965.0,1962.3,6.26972]
[1771764059501,2.54822402,1964.5,1963.2,2.64965425]
[1771764059999,5.35054,1964.9,1963.2,2.64965425]
[1771764060000,2.54822402,1964.3,1963.2,2.64965425]
[1771764060496,2.54822402,1964.1,1963.2,2.65409112]
[1771764062100,2.54822402,1963.9,1963.2,2.65409112]
[1771764063700,2.54822402,1964.1,1963.2,2.65409112]
[1771764063895,2.54822402,1964.3,1963.4,2.64965425]
[1771764065400,2.54822402,1964.7,1963.4,2.64965425]
[1771764066210,2.54822402,1964.7,1963.2,0.00443687]
[1771764066211,2.54822402,1964.7,1963.6,2.64965425]
[1771764066703,2.54822402,1964.7,1963.8,2.64965425]
[1771764068101,2.36988284,1964.9,1963.8,2.64965425]
[1771764068300,2.36988284,1964.9,1964.0,2.51374659]
[1771764069699,0.00439324,1965.0,1964.0,2.51374659]
[1771764070806,0.00439324,1965.0,1964.2,2.51374659]
[1771764071003,2.37427608,1965.0,1964.2,2.51374659]
[1771764073104,0.00439324,1965.0,1964.2,2.51374659]
[1771764073409,2.37427608,1965.0,1964.2,2.51374659]
[1771764076900,0.00439324,1965.0,1964.2,2.51374659]
[1771764077913,2.32013854,1965.0,1964.2,2.51374659]
[1771764094425,2.3157453,1964.8,1963.9,2.50315827]
[1771764094625,0.00439324,1965.0,1963.9,2.50315827]
[1771764094626,2.3157453,1964.6,1963.9,2.50315827]
[1771764097330,2.3157453,1964.7,1963.9,2.50315827]
[1771764101825,2.30095706,1964.5,1963.6,2.29971237]
[1771764104034,2.30095706,1964.5,1963.3,2.29971237]
[1771764105829,2.30095706,1964.5,1963.5,2.29971237]
[1771764106230,2.30095706,1964.5,1963.7,2.29971237]
[1771764111436,2.30095706,1964.9,1963.7,2.29971237]
[1771764111637,2.30095706,1964.7,1963.7,2.29971237]
[1771764116742,2.30095706,1964.7,1963.9,2.29971237]
[1771764120447,2.30095706,1964.9,1964.1,2.29971237]
[1771764128554,0.00439324,1965.0,1964.1,2.29971237]
[1771764128756,2.16261597,1965.0,1964.1,2.29971237]
[1771764129357,2.16261597,1965.0,1964.3,2.180512]
[1771764130454,0.00439324,1965.0,1964.3,2.180512]
[1771764130651,2.16261597,1965.0,1964.3,2.180512]
[1771764130855,0.00439324,1965.0,1964.3,2.180512]
[1771764131057,2.16261597,1965.0,1964.3,2.180512]
[1771764131847,0.00439324,1965.0,1964.3,2.180512]
[1771764132349,0.00439324,1965.0,1964.5,2.180512]
[1771764132553,2.15822273,1965.2,1964.5,2.180512]
[1771764132855,2.15822273,1965.7,1964.7,2.180512]
[1771764133457,2.15822273,1965.7,1964.7,2.18646354]
[1771764133458,2.16277369,1965.7,1964.7,2.18646354]
[1771764136260,2.26195186,1965.5,1964.7,2.18646354]
[1771764145368,2.26195186,1965.6,1964.8,6.75869642]
[1771764145662,2.26195186,1965.6,1964.9,2.2548601]
[1771764147568,0.00455096,1965.7,1964.9,2.2548601]
[1771764147765,2.26650282,1965.7,1964.9,2.2548601]
[1771764152770,2.26650282,1965.7,1965.1,2.2548601]
[1771764153163,0.00455096,1965.7,1965.1,2.2548601]
[1771764154566,2.26650282,1965.7,1965.1,2.2548601]
[1771764154968,2.26195186,1966.2,1965.1,2.2548601]
[1771764155170,2.26195186,1966.0,1965.1,2.2548601]
[1771764155563,2.26195186,1965.8,1964.7,0.00595154]
[1771764155769,2.26195186,1965.6,1964.7,2.26081164]
[1771764155969,2.26195186,1965.4,1964.7,0.00595154]
[1771764160278,2.26195186,1965.4,1964.7,2.09496014]
[1771764168787,2.26644999,1965.6,1964.7,2.09496014]
[1771764173292,2.26644999,1965.6,1964.9,2.0890086]
[1771764176594,2.26239073,1966.0,1965.1,2.0890086]
[1771764176798,2.26239073,1965.8,1964.8,2.0890086]
[1771764177695,2.26644988,1965.8,1964.8,2.0890086]
[1771764182101,2.26239073,1966.2,1965.0,2.0890086]
[1771764182299,2.26239073,1966.0,1965.0,2.0890086]
[1771764182495,2.26239073,1965.8,1965.0,2.0890086]
[1771764183000,2.26882344,1965.8,1965.0,2.0890086]
[1771764183499,2.26239073,1965.6,1965.0,2.0890086]
[1771764191406,2.03506257,1965.8,1965.2,2.07818738]
[1771764193603,0.00643271,1965.8,1965.2,2.07818738]
[1771764194302,2.03370167,1965.8,1965.2,2.07818738]
[1771764195708,0.00643271,1965.8,1965.2,2.07818738]
[1771764197601,2.03370167,1965.8,1965.2,2.07818738]
[1771764198007,0.00643271,1965.8,1965.2,2.07818738]
[1771764201412,0.00643271,1965.8,1964.9,2.00431591]
[1771764201413,2.03370167,1965.8,1964.9,2.00431591]
[1771764209316,2.03370167,1965.8,1965.1,2.00431591]
[1771764212614,2.03370167,1965.8,1964.8,2.00431591]
[1771764212822,2.02726896,1965.6,1964.8,2.00431591]
[1771764213317,2.03370167,1965.8,1964.8,2.00431591]
[1771764213512,2.02726896,1965.6,1964.8,2.00431591]
[1771764215418,2.02726896,1965.7,1964.8,2.00431591]
[1771764215620,2.03370167,1965.8,1964.8,2.00431591]
[1771764217817,2.03370167,1965.8,1965.0,2.00431591]
[1771764221825,4.19118694,1966.3,1965.0,2.00431591]
[1771764221826,1.93417905,1966.3,1965.6,1.92206521]
[1771764222020,1.93417905,1966.3,1965.5,1.92206521]
[1771764222725,1.93785572,1966.3,1965.5,1.92206521]
[1771764225728,0.53891737,1966.2,1965.5,1.92206521]
[1771764225926,1.93417905,1966.1,1965.5,1.92206521]
[1771764230329,1.93785572,1966.3,1965.5,1.92206521]
[1771764233134,1.93417905,1966.1,1965.5,1.92206521]
[1771764237639,1.93417905,1966.2,1965.5,1.92206521]
[1771764240631,0.00367667,1966.3,1965.5,1.92206521]
[1771764240836,0.00367667,1966.3,1965.7,1.92206521]
[1771764241440,1.93785572,1966.3,1965.7,1.92206521]
[1771764248945,0.00367667,1966.3,1965.7,1.92206521]
[1771764249148,1.83204749,1966.7,1965.9,1.87230589]
[1771764250453,1.83606374,1966.7,1966.1,1.87230589]
[1771764250648,1.83606374,1966.7,1966.1,0.00445577]
[1771764252155,1.83606374,1966.7,1966.1,1.87676166]
[1771764253755,1.83606374,1966.7,1966.1,0.00445577]
[1771764254052,1.83606374,1966.7,1965.3,10.24725042]
[1771764254053,1.81749112,1966.5,1965.3,1.90198812]
[1771764254245,1.81749112,1966.3,1965.3,1.90198812]
[1771764254851,1.81749112,1966.3,1965.3,1.90593705]
[1771764255251,1.81749112,1966.1,1965.3,0.00394893]
[1771764255854,1.81749112,1966.1,1965.3,1.90593705]
[1771764257153,1.81749112,1965.9,1965.1,1.90198812]
[1771764258154,1.81749112,1965.9,1965.1,0.00459881]
[1771764260662,40.8,1966.3,1965.1,0.00459881]
[1771764260663,1.81749112,1965.7,1965.1,0.00459881]
[1771764261562,1.81749112,1965.7,1965.1,1.90658693]
[1771764262561,1.81749112,1965.7,1965.1,0.00459881]
[1771764263866,1.81749112,1965.7,1964.9,1.90198812]
[1771764264964,1.81749112,1965.7,1964.9,1.90825533]
[1771764281777,1.76503795,1965.5,1964.9,0.00626721]
[1771764282667,1.76503795,1965.3,1964.2,1.87043431]
[1771764283169,1.76503795,1965.1,1964.2,1.87043431]
[1771764283766,1.76503795,1964.9,1964.2,1.87619576]
[1771764294788,1.76503795,1964.9,1964.2,0.00576145]
[1771764294989,1.76503795,1964.9,1963.4,1.87043431]
[1771764295284,1.76503795,1964.8,1963.4,1.87043431]
[1771764295484,1.76503795,1964.6,1963.4,1.87043431]
[1771764295988,1.76503795,1964.6,1963.6,1.87043431]
[1771764300292,1.77160341,1965.1,1964.0,1.87043431]
[1771764300488,0.00656546,1965.1,1964.4,1.87043431]
[1771764301588,1.77160341,1965.1,1964.4,1.87043431]
[1771764303194,1.36616341,1965.1,1964.4,1.87043431]
[1771764304186,1.37073812,1965.1,1964.4,1.87043431]
[1771764304794,0.00457471,1965.1,1964.4,1.87043431]
[1771764306196,0.00457471,1965.1,1964.5,0.25459]
[1771764306395,1.76503795,1965.6,1964.6,1.87043431]
[1771764306694,1.76503795,1966.0,1964.8,1.87043431]
[1771764306900,1.76503795,1966.0,1965.0,1.87043431]
[1771764307495,1.76902713,1966.0,1965.0,1.87488824]
[1771764320716,1.76902713,1966.0,1965.0,1.82432471]
[1771764324622,1.75821157,1966.0,1965.0,1.82432471]
[1771764325624,1.75821157,1966.0,1965.2,1.67055014]
[1771764325625,0.00398918,1966.0,1965.2,1.67055014]
[1771764325827,0.00398918,1966.0,1965.3,0.25449]
[1771764326118,0.00398918,1966.0,1965.4,1.67055014]
[1771764326820,1.69937227,1966.4,1965.4,1.67055014]
[1771764327726,1.7033673,1966.4,1965.4,1.67055014]
[1771764328418,1.7033673,1966.4,1965.6,1.67055014]
[1771764329422,0.00399503,1966.4,1965.6,1.67055014]
[1771764330524,1.7033673,1966.4,1965.6,1.67055014]
[1771764331332,0.00399503,1966.4,1965.6,1.67055014]
[1771764331928,0.00399503,1966.4,1965.1,10.24725042]
[1771764331929,1.69937227,1966.9,1965.8,1.67055014]
[1771764332330,1.69937227,1966.9,1966.0,1.67055014]
[1771764332824,1.70300785,1966.9,1966.0,1.67055014]
[1771764337530,1.70300785,1966.9,1965.8,1.67055014]
[1771764339531,0.52301253,1966.8,1965.8,1.67055014]
[1771764339731,1.6514421,1966.6,1965.8,1.67055014]
[1771764340222,1.65507768,1966.9,1965.8,1.92497014]
[1771764351136,1.6514421,1966.7,1965.8,1.67055014]
[1771764354745,1.6514421,1966.5,1965.8,1.67055014]
[1771764355241,1.6514421,1966.3,1965.8,1.67055014]
[1771764356942,1.6514421,1966.3,1965.4,1.65497575]
[1771764357248,1.6514421,1966.1,1965.4,1.65497575]
[1771764358141,1.6514421,1966.1,1965.1,1.65497575]
[1771764360248,1.6514421,1966.5,1965.3,1.65497575]
[1771764360448,1.6514421,1966.3,1965.3,1.65497575]
[1771764360945,1.6514421,1966.6,1965.5,1.65497575]
[1771764361150,2.17199632,1966.5,1965.5,1.65497575]
[1771764361352,1.6514421,1966.5,1965.5,1.65497575]
[1771764365757,1.6514421,1966.3,1965.3,1.65497575]
[1771764366049,0.25433,1966.6,1965.1,1.65497575]
[1771764366050,1.6514421,1966.1,1965.1,1.65497575]
[1771764366249,9.28418694,1966.5,1965.0,1.65942968]
[1771764366250,1.6514421,1965.9,1965.0,1.65942968]
[1771764366854,1.6514421,1965.9,1965.0,0.00445393]
[1771764368160,1.6514421,1965.9,1965.0,1.56773565]
[1771764378565,1.59825773,1965.7,1964.7,1.61858178]
[1771764379465,1.59825773,1965.7,1964.7,1.62359747]
[1771764381266,1.59825773,1965.5,1964.7,1.62359747]
[1771764381563,1.60204363,1965.5,1964.7,1.62359747]
[1771764382562,1.59825773,1965.4,1964.7,1.62359747]
[1771764383567,1.59825773,1965.4,1964.6,1.61858178]
[1771764384467,1.59825773,1965.4,1964.4,1.61858178]
[1771764384468,1.59825773,1965.3,1964.4,1.61858178]
[1771764384668,1.59825773,1965.3,1964.4,0.00488765]
[1771764384868,1.59825773,1965.3,1964.4,1.62346943]
[1771764385069,1.59825773,1965.2,1964.4,1.62346943]
[1771764385665,1.59825773,1965.0,1964.4,0.00488765]
[1771764387271,1.59825773,1965.0,1964.4,1.62346943]
[1771764387873,1.59825773,1965.4,1964.4,1.62346943]
[1771764388572,1.59825773,1965.4,1964.0,0.25465]
[1771764388573,1.59825773,1965.2,1963.6,1.61858178]
[1771764388870,1.59825773,1964.4,1963.4,1.61858178]
[1771764389070,1.59825773,1964.2,1962.5,1.61858178]
[1771764389377,6.9163375,1964.3,1962.5,1.61858178]
[1771764389378,1.59825773,1964.0,1962.5,1.61858178]
[1771764389571,1.59825773,1964.0,1962.5,1.62223236]
[1771764389572,1.60395871,1964.0,1962.5,1.62223236]
[1771764390673,1.60395871,1964.0,1962.7,1.61858178]
[1771764396281,1.60395871,1964.0,1962.5,0.00365058]
[1771764396282,1.60395871,1964.0,1962.9,1.61858178]
[1771764397777,1.60395871,1964.0,1963.1,1.61858178]
[1771764398682,1.60395871,1964.0,1963.3,1.6884277]
[1771764401284,1.60395871,1964.0,1962.5,0.00365058]
[1771764401285,1.62732913,1963.9,1962.6,1.6884277]
[1771764401485,1.62732913,1963.9,1962.8,1.6884277]
[1771764401878,1.62732913,1963.8,1962.8,1.6884277]
[1771764402075,1.62732913,1963.7,1962.8,1.6884277]
[1771764402281,1.62732913,1963.6,1962.8,1.6884277]
[1771764402586,1.62732913,1963.6,1962.6,1.6884277]
[1771764403479,1.62732913,1963.4,1962.6,1.6884277]
[1771764404079,1.62732913,1963.4,1962.5,0.00365058]
[1771764404284,1.59721,1963.1,1961.5,1.6884277]
[1771764404484,1.35380284,1962.6,1961.5,1.6884277]
[1771764405184,1.35380284,1962.6,1961.5,1.6923572]
[1771764405185,1.35759145,1962.6,1961.5,1.6923572]
[1771764407877,0.00378861,1962.6,1961.7,1.6884277]
[1771764409282,1.38008254,1963.1,1961.9,1.6884277]
[1771764409983,1.38008254,1963.1,1962.1,1.6884277]
[1771764410285,1.38456855,1963.1,1962.1,1.6884277]
[1771764412193,1.38456855,1963.1,1962.3,1.6884277]
[1771764412389,0.82728247,1963.1,1962.3,1.6884277]
[1771764412788,0.00448601,1963.1,1962.3,1.6884277]
[1771764414693,0.84001232,1963.6,1962.5,1.6884277]
[1771764415495,0.84088686,1964.0,1962.5,1.6884277]
[1771764415685,0.84506158,1964.0,1962.5,1.6884277]
[1771764416084,0.84506158,1964.0,1962.5,1.9432677]
[1771764416289,0.84506158,1964.0,1962.7,1.6884277]
[1771764416494,0.84506158,1964.0,1962.9,1.6884277]
[1771764416790,0.00417472,1964.0,1962.9,1.69342767]
[1771764417290,0.00417472,1964.0,1963.1,1.6884277]
[1771764418386,0.87950539,1964.4,1963.3,1.6884277]
[1771764418587,0.88701613,1964.7,1963.5,1.6884277]
[1771764418889,0.88701613,1964.7,1963.6,6.664]
[1771764419095,0.88701613,1964.7,1963.7,1.6884277]
[1771764419594,0.88787155,1964.6,1963.7,1.6884277]
[1771764420495,0.00524529,1964.7,1963.7,1.6884277]
[1771764421595,0.91679738,1964.7,1963.7,1.6884277]
[1771764422192,0.91679738,1964.7,1963.5,8.3524277]
[1771764422390,0.91679738,1964.7,1963.5,1.6884277]
[1771764422592,0.90528924,1964.5,1963.5,1.6884277]
[1771764422989,0.90528924,1964.5,1963.0,1.6884277]
[1771764423898,0.90609554,1964.3,1963.0,1.6884277]
[1771764425700,5.29e-06,1964.7,1963.7,1.6884277]
[1771764426000,0.90496088,1964.7,1963.7,1.6884277]
[1771764426897,0.88630872,1964.6,1963.7,1.6884277]
[1771764427994,1.14090872,1964.6,1963.7,1.6884277]
[1771764431109,5.29e-06,1964.7,1963.6,0.25469]
[1771764431110,5.29e-06,1964.7,1963.9,1.57836022]
[1771764433108,5.29e-06,1964.7,1964.1,1.57836022]
[1771764436807,0.8106086,1965.4,1964.3,1.70102812]
[1771764437213,0.2546,1965.4,1964.3,1.70102812]
[1771764437714,0.26111986,1965.4,1964.3,1.70561382]
[1771764438620,0.00651986,1965.4,1964.5,1.70102812]
[1771764438812,0.00651986,1965.4,1964.4,6.48976359]
[1771764438813,0.87987438,1966.0,1964.7,1.70102812]
[1771764439018,0.87987438,1966.9,1965.1,1.70102812]
[1771764439213,0.87987438,1966.5,1965.1,1.70102812]
[1771764439917,0.2546,1966.3,1965.1,1.70102812]
[1771764440216,0.88053095,1966.4,1965.1,1.70102812]
[1771764440406,1.13513095,1966.4,1965.1,1.70102812]
[1771764440605,0.88053095,1966.4,1965.1,1.70102812]
[1771764440805,0.00538427,1966.5,1965.3,1.70102812]
[1771764441206,0.2546,1966.4,1965.3,1.70102812]
[1771764441615,0.2546,1966.3,1965.3,1.70102812]
[1771764441908,0.90952393,1966.5,1965.3,1.70102812]
[1771764442112,0.2546,1966.4,1965.3,1.70102812]
[1771764442413,0.90952393,1966.5,1965.3,1.70102812]
[1771764442621,0.2546,1966.4,1965.3,1.70102812]
[1771764442911,0.90548379,1967.4,1965.5,1.70102812]
[1771764443312,0.90548379,1967.2,1965.7,1.70102812]
[1771764443815,0.90996885,1967.2,1965.7,1.70737474]
[1771764447624,0.90996885,1967.2,1965.9,1.95543812]
[1771764448023,0.90996885,1967.2,1966.1,1.70102812]
[1771764454214,0.90996885,1967.2,1966.3,1.70102812]
[1771764454215,0.00448506,1967.2,1966.3,1.70102812]
[1771764457724,0.85704589,1967.2,1966.3,1.70102812]
[1771764457926,0.85256083,1967.0,1966.1,1.70102812]
[1771764459020,0.89390675,1966.8,1965.8,1.67176835]
[1771764459925,0.89444828,1967.0,1965.8,1.67176835]
[1771764463930,0.97555867,1966.9,1965.8,1.67176835]
[1771764464632,0.99276182,1966.8,1965.8,1.67176835]
[1771764466339,0.99326893,1966.6,1965.8,1.67176835]
[1771764470333,1.55142515,1966.5,1965.8,1.67176835]
[1771764470641,1.03853503,1966.5,1965.8,1.67176835]
[1771764470942,1.04328862,1966.3,1965.4,1.67176835]
[1771764471142,1.04328862,1966.1,1964.6,1.67176835]
[1771764471345,1.04328862,1965.9,1964.7,1.67176835]
[1771764472042,1.04328862,1965.9,1964.7,1.67815678]
[1771764473043,1.07563727,1966.2,1964.9,1.67176835]
[1771764478635,1.071789,1966.1,1964.9,1.67176835]
[1771764481742,1.04747773,1965.9,1964.9,1.67176835]
[1771764482447,1.04747773,1965.6,1964.8,1.67176835]
[1771764482637,1.03189357,1965.4,1964.8,1.67176835]
[1771764483043,1.03189357,1965.4,1964.7,0.00638843]
[1771764483239,1.03838372,1965.6,1964.7,1.67815678]
[1771764487845,0.00649015,1965.6,1964.7,1.67815678]
[1771764490246,0.97681678,1966.1,1964.9,1.72940321]
[1771764491149,0.00640974,1966.1,1965.0,0.25452]
[1771764491345,0.00640974,1966.1,1965.1,1.72940321]
[1771764491942,0.96639813,1966.1,1965.1,1.72940321]
[1771764492652,0.91713682,1966.0,1965.1,1.72940321]
[1771764492847,0.91713682,1965.8,1965.1,1.72940321]
[1771764495353,0.88899966,1966.0,1965.1,1.72940321]
[1771764499254,0.51376383,1965.9,1965.1,1.72940321]
[1771764499453,0.88899966,1966.0,1965.1,1.72940321]
[1771764499654,0.00640974,1966.1,1965.1,1.72940321]
[1771764499955,0.51379823,1966.0,1965.1,1.72940321]
[1771764500149,0.85558795,1966.1,1965.1,1.72940321]
[1771764500350,0.51381567,1966.0,1965.1,1.72940321]
[1771764500554,0.85558795,1966.1,1965.1,1.72940321]
[1771764500751,0.51404018,1966.0,1965.1,1.72940321]
[1771764500946,0.00640974,1966.1,1965.1,1.72940321]
[1771764501153,10.96328188,1966.7,1965.3,1.6956012]
[1771764501352,6.66731297,1966.6,1965.3,1.6956012]
[1771764501558,0.51399002,1966.5,1965.5,1.6956012]
[1771764501854,0.85602191,1966.6,1965.5,1.6956012]
[1771764502057,0.86017175,1966.6,1965.5,1.6956012]
[1771764502456,0.00414984,1966.6,1965.5,1.6956012]
[1771764503557,0.89097298,1966.6,1965.5,1.6956012]
[1771764508358,0.00414984,1966.6,1965.5,1.6956012]
[1771764509663,0.00414984,1966.6,1965.7,1.6956012]
[1771764514366,0.87791574,1966.6,1965.7,1.6956012]
[1771764528882,0.98178652,1966.5,1965.7,1.6956012]
[1771764529380,5.09714984,1966.6,1965.7,1.6956012]
[1771764529381,0.98178652,1966.3,1965.7,1.6956012]
[1771764534980,0.49868549,1966.2,1965.2,1.69330743]
[1771764535185,6.65148946,1966.1,1965.4,1.69330743]
[1771764535481,1.01636924,1966.5,1965.4,1.69330743]
[1771764535676,0.00414984,1966.6,1965.6,1.69330743]
[1771764535979,0.4984926,1966.5,1965.6,1.69330743]
[1771764536178,1.02051908,1966.6,1965.6,1.69330743]
[1771764536380,0.49849336,1966.5,1965.6,1.69330743]
[1771764536584,1.02051908,1966.6,1965.6,1.69330743]
[1771764536784,0.49848132,1966.5,1965.6,1.69330743]
[1771764536985,1.02051908,1966.6,1965.6,1.69330743]
[1771764537175,0.49848138,1966.5,1965.6,1.69330743]
[1771764537383,1.02051908,1966.6,1965.6,1.69330743]
[1771764537582,0.49847953,1966.5,1965.6,1.69330743]
[1771764537784,1.02051908,1966.6,1965.6,1.69330743]
[1771764538086,0.49848017,1966.5,1965.6,1.69330743]
[1771764538286,0.00414984,1966.6,1965.6,1.69330743]
[1771764538487,1.05015204,1966.4,1965.6,1.69330743]
[1771764538987,1.05015204,1966.2,1965.6,1.69330743]
[1771764540783,1.05015204,1966.2,1965.4,1.69330743]
[1771764543784,1.05015204,1966.2,1965.1,1.69330743]
[1771764544790,1.13270894,1966.1,1965.1,1.69330743]
[1771764546386,1.63082637,1966.0,1965.1,1.69330743]
[1771764546587,1.13275973,1965.9,1965.1,1.69330743]
[1771764547487,1.13296966,1965.7,1965.1,1.69330743]
[1771764553600,1.14301026,1966.0,1965.1,1.69330743]
[1771764553793,1.6404212,1965.9,1965.1,1.69330743]